[Event "Titled Tuesday Blitz December 06 Early 2022"]
[White "Crevatin, Leo"]
[Black "Liu, Xiangyi"]
[WhiteFideId "1726307"]
[BlackFideId "8605718"]
[WhiteElo "2190"]
[BlackElo "2323"]
[Result "1/2-1/2"]
[Round "04"]
[TimeControl "180+1"]
[Date "2022.12.07"]
[WhiteClock "0:00:03"]
[BlackClock "0:00:12"]

1. d4 {[%clk 0:03:00]}  Nf6 {[%clk 0:02:59]} 2. Bf4 {[%clk 0:03:00]}  g6 {[%clk 0:02:59]} 3. e3 {[%clk 0:03:00]}  d6 {[%clk 0:02:58]} 4. h3 {[%clk 0:02:58]}  Bg7 {[%clk 0:02:58]} 5. Nf3 {[%clk 0:02:59]}  O-O {[%clk 0:02:58]} 6. Be2 {[%clk 0:02:59]}  Nfd7 {[%clk 0:02:59]} 7. O-O {[%clk 0:02:58]}  e5 {[%clk 0:02:59]} 8. Bh2 {[%clk 0:02:59]}  Nc6 {[%clk 0:02:58]} 9. c4 {[%clk 0:02:59]}  f5 {[%clk 0:02:57]} 10. Nc3 {[%clk 0:02:59]}  h6 {[%clk 0:02:56]} 11. a3 {[%clk 0:02:51]}  Kh7 {[%clk 0:02:55]} 12. b4 {[%clk 0:02:50]}  e4 {[%clk 0:02:51]} 13. Nd2 {[%clk 0:02:49]}  g5 {[%clk 0:02:50]} 14. c5 {[%clk 0:02:42]}  dxc5 {[%clk 0:02:37]} 15. bxc5 {[%clk 0:02:41]}  Nxc5 {[%clk 0:02:37]} 16. Nb5 {[%clk 0:02:39]}  Ne6 {[%clk 0:02:11]} 17. Rc1 {[%clk 0:02:36]}  a6 {[%clk 0:02:10]} 18. Nc3 {[%clk 0:02:36]}  Ne7 {[%clk 0:01:48]} 19. Nc4 {[%clk 0:02:33]}  b5 {[%clk 0:01:29]} 20. Ne5 {[%clk 0:02:15]}  Bb7 {[%clk 0:01:26]} 21. Qb3 {[%clk 0:02:09]}  Rf6 {[%clk 0:00:37]} 22. a4 {[%clk 0:02:06]}  c6 {[%clk 0:00:31]} 23. Rfd1 {[%clk 0:01:51]}  Nc7 {[%clk 0:00:30]} 24. f3 {[%clk 0:01:31]}  exf3 {[%clk 0:00:18]} 25. Bxf3 {[%clk 0:01:32]}  Ncd5 {[%clk 0:00:18]} 26. e4 {[%clk 0:01:24]}  Nxc3 {[%clk 0:00:17]} 27. Rxc3 {[%clk 0:01:18]}  f4 {[%clk 0:00:17]} 28. Kh1 {[%clk 0:01:15]}  Rb8 {[%clk 0:00:14]} 29. Bg1 {[%clk 0:01:11]}  Ba8 {[%clk 0:00:14]} 30. Ng4 {[%clk 0:01:08]}  Rd6 {[%clk 0:00:13]} 31. Rcd3 {[%clk 0:01:04]}  h5 {[%clk 0:00:09]} 32. Ne5 {[%clk 0:01:01]}  Qe8 {[%clk 0:00:09]} 33. Qb4 {[%clk 0:00:51]}  Rh6 {[%clk 0:00:07]} 34. Be2 {[%clk 0:00:32]}  g4 {[%clk 0:00:06]} 35. Qd2 {[%clk 0:00:31]}  f3 {[%clk 0:00:06]} 36. gxf3 {[%clk 0:00:31]}  gxh3 {[%clk 0:00:06]} 37. f4 {[%clk 0:00:32]}  Ng6 {[%clk 0:00:05]} 38. Rxh3 {[%clk 0:00:27]}  c5 {[%clk 0:00:05]} 39. Bf3 {[%clk 0:00:25]}  cxd4 {[%clk 0:00:04]} 40. Nxg6 {[%clk 0:00:24]}  Qxg6 {[%clk 0:00:03]} 41. e5 {[%clk 0:00:19]}  Bxf3+ {[%clk 0:00:03]} 42. Rxf3 {[%clk 0:00:20]}  Qe4 {[%clk 0:00:03]} 43. Qd3 {[%clk 0:00:17]}  Qxd3 {[%clk 0:00:03]} 44. Rfxd3 {[%clk 0:00:17]}  bxa4 {[%clk 0:00:03]} 45. Rxd4 {[%clk 0:00:17]}  a3 {[%clk 0:00:03]} 46. Ra4 {[%clk 0:00:17]}  Rb3 {[%clk 0:00:04]} 47. Bh2 {[%clk 0:00:11]}  Bf8 {[%clk 0:00:04]} 48. f5 {[%clk 0:00:11]}  Rhb6 {[%clk 0:00:04]} 49. e6 {[%clk 0:00:10]}  Rb1 {[%clk 0:00:05]} 50. Rxb1 {[%clk 0:00:07]}  Rxb1+ {[%clk 0:00:06]} 51. Kg2 {[%clk 0:00:08]}  Rb2+ {[%clk 0:00:06]} 52. Kh3 {[%clk 0:00:09]}  Be7 {[%clk 0:00:07]} 53. Be5 {[%clk 0:00:05]}  Rb3+ {[%clk 0:00:08]} 54. Kg2 {[%clk 0:00:04]}  Re3 {[%clk 0:00:08]} 55. Bd4 {[%clk 0:00:04]}  Re2+ {[%clk 0:00:09]} 56. Kf3 {[%clk 0:00:04]}  Rd2 {[%clk 0:00:09]} 57. f6 {[%clk 0:00:03]}  Rd3+ {[%clk 0:00:09]} 58. Ke4 {[%clk 0:00:03]}  Rxd4+ {[%clk 0:00:09]} 59. Kxd4 {[%clk 0:00:03]}  Bxf6+ {[%clk 0:00:10]} 60. Kd5 {[%clk 0:00:03]}  Be7 {[%clk 0:00:10]} 61. Rxa6 {[%clk 0:00:03]}  Kg6 {[%clk 0:00:11]} 62. Kc6 {[%clk 0:00:04]}  Kf6 {[%clk 0:00:11]} 63. Kd7 {[%clk 0:00:04]}  h4 {[%clk 0:00:12]} 64. Ra4 {[%clk 0:00:04]}  h3 {[%clk 0:00:12]} 65. Rf4+ {[%clk 0:00:04]}  Ke5 {[%clk 0:00:13]} 66. Rf1 {[%clk 0:00:02]}  Bc5 {[%clk 0:00:11]} 67. e7 {[%clk 0:00:02]}  Bxe7 {[%clk 0:00:12]} 68. Kxe7 {[%clk 0:00:03]}  h2 {[%clk 0:00:12]} 69. Rh1 {[%clk 0:00:02]}  a2 {[%clk 0:00:12]} 70. Kd7 {[%clk 0:00:02]}  Kf4 {[%clk 0:00:12]} 71. Kc6 {[%clk 0:00:02]}  Kg3 {[%clk 0:00:13]} 72. Ra1 {[%clk 0:00:03]}  Kf3 {[%clk 0:00:10]} 73. Kd5 {[%clk 0:00:03]}  Kg2 {[%clk 0:00:10]} 74. Rxa2+ {[%clk 0:00:02]}  Kg1 {[%clk 0:00:11]} 75. Rxh2 {[%clk 0:00:03]}  Kxh2 {[%clk 0:00:12]} 1/2-1/2


[Site "https://www.chess.com"]

[Event "Titled Tuesday Blitz December 06 Early 2022"]
[White "Csonka, Balazs"]
[Black "Vlassov, Nikolai"]
[WhiteFideId "742910"]
[BlackFideId "4103360"]
[WhiteElo "2404"]
[BlackElo "2324"]
[Result "1/2-1/2"]
[Round "04"]
[TimeControl "180+1"]
[Date "2022.12.07"]
[WhiteClock "0:00:04"]
[BlackClock "0:00:30"]

1. e4 {[%clk 0:03:00]}  Nc6 {[%clk 0:02:59]} 2. Nc3 {[%clk 0:02:55]}  Nf6 {[%clk 0:02:58]} 3. d4 {[%clk 0:02:50]}  d5 {[%clk 0:02:58]} 4. e5 {[%clk 0:02:46]}  Nd7 {[%clk 0:02:57]} 5. Nxd5 {[%clk 0:02:18]}  Ndb8 {[%clk 0:02:57]} 6. Nc3 {[%clk 0:01:55]}  Qxd4 {[%clk 0:02:55]} 7. Qxd4 {[%clk 0:01:54]}  Nxd4 {[%clk 0:02:55]} 8. Bd3 {[%clk 0:01:54]}  Bf5 {[%clk 0:02:52]} 9. Bxf5 {[%clk 0:01:50]}  Nxf5 {[%clk 0:02:50]} 10. Bf4 {[%clk 0:01:40]}  e6 {[%clk 0:02:50]} 11. O-O-O {[%clk 0:01:38]}  Nc6 {[%clk 0:02:44]} 12. Nf3 {[%clk 0:01:37]}  Be7 {[%clk 0:02:40]} 13. h4 {[%clk 0:01:13]}  h5 {[%clk 0:02:35]} 14. g3 {[%clk 0:01:02]}  a6 {[%clk 0:02:35]} 15. Ne4 {[%clk 0:00:59]}  Rd8 {[%clk 0:02:30]} 16. Neg5 {[%clk 0:00:54]}  O-O {[%clk 0:02:24]} 17. c3 {[%clk 0:00:44]}  Rxd1+ {[%clk 0:02:17]} 18. Rxd1 {[%clk 0:00:44]}  Rd8 {[%clk 0:02:17]} 19. Rxd8+ {[%clk 0:00:44]}  Nxd8 {[%clk 0:02:14]} 20. Ne4 {[%clk 0:00:42]}  Kf8 {[%clk 0:02:09]} 21. Kd2 {[%clk 0:00:42]}  Nc6 {[%clk 0:01:56]} 22. Kd3 {[%clk 0:00:26]}  Ke8 {[%clk 0:01:55]} 23. Bg5 {[%clk 0:00:23]}  Bxg5 {[%clk 0:01:49]} 24. Nexg5 {[%clk 0:00:24]}  Ke7 {[%clk 0:01:48]} 25. Ke4 {[%clk 0:00:19]}  f6 {[%clk 0:01:43]} 26. Nh3 {[%clk 0:00:17]}  fxe5 {[%clk 0:01:38]} 27. Nxe5 {[%clk 0:00:17]}  Nd6+ {[%clk 0:01:37]} 28. Kf4 {[%clk 0:00:17]}  Nxe5 {[%clk 0:01:37]} 29. Kxe5 {[%clk 0:00:18]}  Nc4+ {[%clk 0:01:38]} 30. Kf4 {[%clk 0:00:19]}  Nxb2 {[%clk 0:01:38]} 31. Kg5 {[%clk 0:00:19]}  Nd1 {[%clk 0:01:35]} 32. c4 {[%clk 0:00:16]}  a5 {[%clk 0:01:30]} 33. Kxh5 {[%clk 0:00:16]}  Nc3 {[%clk 0:01:29]} 34. Kg6 {[%clk 0:00:16]}  Nxa2 {[%clk 0:01:16]} 35. Kxg7 {[%clk 0:00:16]}  a4 {[%clk 0:01:16]} 36. h5 {[%clk 0:00:16]}  a3 {[%clk 0:01:16]} 37. h6 {[%clk 0:00:17]}  Nc1 {[%clk 0:01:10]} 38. h7 {[%clk 0:00:17]}  a2 {[%clk 0:01:10]} 39. h8=Q {[%clk 0:00:17]}  a1=Q+ {[%clk 0:01:10]} 40. Kg8 {[%clk 0:00:18]}  Qxh8+ {[%clk 0:01:09]} 41. Kxh8 {[%clk 0:00:19]}  Nd3 {[%clk 0:01:04]} 42. Kg7 {[%clk 0:00:16]}  Ne5 {[%clk 0:01:01]} 43. f4 {[%clk 0:00:07]}  Nxc4 {[%clk 0:01:01]} 44. g4 {[%clk 0:00:07]}  Nd6 {[%clk 0:00:59]} 45. Kg6 {[%clk 0:00:04]}  b5 {[%clk 0:00:57]} 46. f5 {[%clk 0:00:03]}  exf5 {[%clk 0:00:45]} 47. gxf5 {[%clk 0:00:04]}  Ne4 {[%clk 0:00:44]} 48. Nf4 {[%clk 0:00:03]}  c5 {[%clk 0:00:42]} 49. Nd3 {[%clk 0:00:03]}  c4 {[%clk 0:00:40]} 50. Nb4 {[%clk 0:00:03]}  Kd6 {[%clk 0:00:40]} 51. f6 {[%clk 0:00:02]}  Nxf6 {[%clk 0:00:40]} 52. Kxf6 {[%clk 0:00:03]}  Kc5 {[%clk 0:00:41]} 53. Na6+ {[%clk 0:00:03]}  Kd4 {[%clk 0:00:40]} 54. Kf5 {[%clk 0:00:02]}  c3 {[%clk 0:00:41]} 55. Nb4 {[%clk 0:00:02]}  Kc4 {[%clk 0:00:40]} 56. Nc2 {[%clk 0:00:02]}  b4 {[%clk 0:00:41]} 57. Ke4 {[%clk 0:00:02]}  b3 {[%clk 0:00:41]} 58. Ne3+ {[%clk 0:00:02]}  Kb4 {[%clk 0:00:42]} 59. Kd3 {[%clk 0:00:03]}  c2 {[%clk 0:00:30]} 60. Nxc2+ {[%clk 0:00:03]}  bxc2 {[%clk 0:00:30]} 61. Kxc2 {[%clk 0:00:04]} 1/2-1/2


[Site "https://www.chess.com"]

[Event "Titled Tuesday Blitz December 06 Early 2022"]
[White "Dardha, Daniel"]
[Black "Bortnyk, Olexandr"]
[WhiteFideId "240990"]
[BlackFideId "14120828"]
[WhiteElo "2528"]
[BlackElo "2723"]
[Result "1-0"]
[Round "04"]
[TimeControl "180+1"]
[Date "2022.12.06"]
[WhiteClock "0:01:08"]
[BlackClock "0:00:04"]

1. e4 {[%clk 0:02:37]}  Nf6 {[%clk 0:02:54]} 2. e5 {[%clk 0:02:36]}  Nd5 {[%clk 0:02:54]} 3. Nf3 {[%clk 0:02:36]}  d6 {[%clk 0:02:52]} 4. d4 {[%clk 0:02:37]}  dxe5 {[%clk 0:02:52]} 5. Nxe5 {[%clk 0:02:37]}  c6 {[%clk 0:02:49]} 6. Be2 {[%clk 0:02:35]}  Bf5 {[%clk 0:02:49]} 7. O-O {[%clk 0:02:35]}  Nd7 {[%clk 0:02:49]} 8. Nf3 {[%clk 0:02:35]}  e6 {[%clk 0:02:45]} 9. c4 {[%clk 0:02:35]}  N5f6 {[%clk 0:02:46]} 10. Nc3 {[%clk 0:02:36]}  Bd6 {[%clk 0:02:46]} 11. h3 {[%clk 0:02:35]}  h6 {[%clk 0:02:43]} 12. Qb3 {[%clk 0:02:34]}  Qc7 {[%clk 0:02:39]} 13. Be3 {[%clk 0:02:34]}  O-O {[%clk 0:02:39]} 14. Rac1 {[%clk 0:02:33]}  Rfe8 {[%clk 0:02:38]} 15. Rfe1 {[%clk 0:02:31]}  b6 {[%clk 0:02:16]} 16. d5 {[%clk 0:02:07]}  exd5 {[%clk 0:02:17]} 17. cxd5 {[%clk 0:02:08]}  Nc5 {[%clk 0:02:02]} 18. Qd1 {[%clk 0:02:06]}  Rad8 {[%clk 0:01:54]} 19. b4 {[%clk 0:02:01]}  Nce4 {[%clk 0:01:25]} 20. Nb5 {[%clk 0:01:39]}  Qe7 {[%clk 0:01:06]} 21. Nxd6 {[%clk 0:01:32]}  Rxd6 {[%clk 0:01:07]} 22. Nd4 {[%clk 0:01:19]}  Nxd5 {[%clk 0:00:24]} 23. Nxf5 {[%clk 0:01:16]}  Qf6 {[%clk 0:00:17]} 24. Nxd6 {[%clk 0:01:16]}  Qxd6 {[%clk 0:00:06]} 25. Bf3 {[%clk 0:01:13]}  Qxb4 {[%clk 0:00:04]} 26. Qd4 {[%clk 0:01:08]} 1-0


[Site "https://www.chess.com"]

[Event "Titled Tuesday Blitz December 06 Early 2022"]
[White "Durarbayli, Vasif"]
[Black "Tanenbaum, Zachary"]
[WhiteFideId "13402935"]
[BlackFideId "2060850"]
[WhiteElo "2576"]
[BlackElo "2175"]
[Result "1-0"]
[Round "04"]
[TimeControl "180+1"]
[Date "2022.12.06"]
[WhiteClock "0:00:45"]
[BlackClock "0:01:35"]

1. e4 {[%clk 0:03:00]}  e5 {[%clk 0:02:55]} 2. Nf3 {[%clk 0:02:54]}  Nc6 {[%clk 0:02:55]} 3. Bb5 {[%clk 0:02:53]}  a6 {[%clk 0:02:54]} 4. Ba4 {[%clk 0:02:54]}  d6 {[%clk 0:02:54]} 5. O-O {[%clk 0:02:52]}  Nf6 {[%clk 0:02:54]} 6. Re1 {[%clk 0:02:32]}  Be7 {[%clk 0:02:54]} 7. c3 {[%clk 0:02:32]}  O-O {[%clk 0:02:53]} 8. h3 {[%clk 0:02:28]}  b5 {[%clk 0:02:52]} 9. Bc2 {[%clk 0:02:28]}  Nb8 {[%clk 0:02:52]} 10. d4 {[%clk 0:02:22]}  Nbd7 {[%clk 0:02:52]} 11. Nbd2 {[%clk 0:02:22]}  Bb7 {[%clk 0:02:52]} 12. Nf1 {[%clk 0:02:23]}  Re8 {[%clk 0:02:52]} 13. Ng3 {[%clk 0:02:22]}  Bf8 {[%clk 0:02:52]} 14. a4 {[%clk 0:02:12]}  g6 {[%clk 0:02:50]} 15. Bd3 {[%clk 0:02:10]}  c6 {[%clk 0:02:47]} 16. Bg5 {[%clk 0:01:57]}  Bg7 {[%clk 0:02:46]} 17. b4 {[%clk 0:01:55]}  Qe7 {[%clk 0:02:45]} 18. Qb1 {[%clk 0:01:53]}  Nb6 {[%clk 0:02:41]} 19. axb5 {[%clk 0:01:36]}  cxb5 {[%clk 0:02:39]} 20. d5 {[%clk 0:01:32]}  Rac8 {[%clk 0:02:38]} 21. Qb3 {[%clk 0:01:23]}  Rc7 {[%clk 0:02:35]} 22. Nd2 {[%clk 0:01:20]}  Rec8 {[%clk 0:02:35]} 23. Rec1 {[%clk 0:01:20]}  Qf8 {[%clk 0:02:20]} 24. Be3 {[%clk 0:01:11]}  Bh6 {[%clk 0:02:16]} 25. Bxb6 {[%clk 0:01:02]}  Bxd2 {[%clk 0:02:15]} 26. Bxc7 {[%clk 0:01:03]}  Bxc1 {[%clk 0:02:14]} 27. Bxd6 {[%clk 0:01:01]}  Qh6 {[%clk 0:02:02]} 28. Bxe5 {[%clk 0:00:58]}  Qd2 {[%clk 0:02:02]} 29. Bxf6 {[%clk 0:00:53]}  Bb2 {[%clk 0:01:55]} 30. Rd1 {[%clk 0:00:49]}  Qf4 {[%clk 0:01:35]} 31. Bd4 {[%clk 0:00:45]} 1-0


[Site "https://www.chess.com"]

[Event "Titled Tuesday Blitz December 06 Early 2022"]
[White "Dushyant Sharma"]
[Black "Makhmudov, Shukhrat"]
[WhiteFideId "25065130"]
[BlackFideId "14200775"]
[WhiteElo "2280"]
[BlackElo "2135"]
[Result "1-0"]
[Round "04"]
[TimeControl "180+1"]
[Date "2022.12.07"]
[WhiteClock "0:00:16"]
[BlackClock "0:00:11"]

1. e4 {[%clk 0:03:00]}  e5 {[%clk 0:02:59]} 2. Nf3 {[%clk 0:03:00]}  Nc6 {[%clk 0:02:58]} 3. Nc3 {[%clk 0:02:52]}  Nf6 {[%clk 0:02:58]} 4. Bb5 {[%clk 0:02:51]}  Nd4 {[%clk 0:02:58]} 5. Nxd4 {[%clk 0:02:45]}  exd4 {[%clk 0:02:58]} 6. e5 {[%clk 0:02:45]}  dxc3 {[%clk 0:02:41]} 7. exf6 {[%clk 0:02:44]}  Qxf6 {[%clk 0:02:40]} 8. bxc3 {[%clk 0:02:43]}  Be7 {[%clk 0:02:32]} 9. O-O {[%clk 0:02:42]}  O-O {[%clk 0:02:32]} 10. d4 {[%clk 0:02:39]}  d5 {[%clk 0:02:31]} 11. Bd3 {[%clk 0:02:32]}  c6 {[%clk 0:02:24]} 12. Rb1 {[%clk 0:02:17]}  Bd6 {[%clk 0:02:23]} 13. c4 {[%clk 0:02:13]}  dxc4 {[%clk 0:02:10]} 14. Bxc4 {[%clk 0:02:14]}  Qh4 {[%clk 0:02:10]} 15. f4 {[%clk 0:02:06]}  Qf6 {[%clk 0:01:52]} 16. c3 {[%clk 0:02:02]}  b5 {[%clk 0:01:48]} 17. Bd3 {[%clk 0:02:02]}  Bf5 {[%clk 0:01:47]} 18. a4 {[%clk 0:01:56]}  a6 {[%clk 0:01:45]} 19. Kh1 {[%clk 0:01:45]}  Qg6 {[%clk 0:01:25]} 20. Bxf5 {[%clk 0:01:43]}  Qxf5 {[%clk 0:01:25]} 21. Bd2 {[%clk 0:01:30]}  Rfe8 {[%clk 0:01:21]} 22. axb5 {[%clk 0:01:27]}  axb5 {[%clk 0:01:21]} 23. Ra1 {[%clk 0:01:27]}  Qd3 {[%clk 0:00:59]} 24. Rxa8 {[%clk 0:01:19]}  Rxa8 {[%clk 0:00:58]} 25. f5 {[%clk 0:00:59]}  Ra2 {[%clk 0:00:45]} 26. Bg5 {[%clk 0:00:59]}  Qxc3 {[%clk 0:00:39]} 27. f6 {[%clk 0:00:40]}  Qc2 {[%clk 0:00:31]} 28. Qg4 {[%clk 0:00:35]}  Qe2 {[%clk 0:00:15]} 29. Qc8+ {[%clk 0:00:25]}  Bf8 {[%clk 0:00:15]} 30. Rg1 {[%clk 0:00:26]}  h6 {[%clk 0:00:14]} 31. fxg7 {[%clk 0:00:26]}  Kxg7 {[%clk 0:00:14]} 32. Bxh6+ {[%clk 0:00:26]}  Kxh6 {[%clk 0:00:14]} 33. Qxf8+ {[%clk 0:00:27]}  Kg6 {[%clk 0:00:15]} 34. Qg8+ {[%clk 0:00:25]}  Kf6 {[%clk 0:00:15]} 35. Qd8+ {[%clk 0:00:26]}  Kg7 {[%clk 0:00:15]} 36. Qg5+ {[%clk 0:00:26]}  Kf8 {[%clk 0:00:16]} 37. Qc5+ {[%clk 0:00:26]}  Kg7 {[%clk 0:00:16]} 38. Qxc6 {[%clk 0:00:26]}  Qc4 {[%clk 0:00:15]} 39. Qe4 {[%clk 0:00:20]}  b4 {[%clk 0:00:12]} 40. Qg4+ {[%clk 0:00:20]}  Kf8 {[%clk 0:00:12]} 41. Re1 {[%clk 0:00:20]}  b3 {[%clk 0:00:12]} 42. Qf4 {[%clk 0:00:16]}  Qb4 {[%clk 0:00:11]} 43. Qh6+ {[%clk 0:00:15]}  Kg8 {[%clk 0:00:11]} 44. Re8+ {[%clk 0:00:16]} 1-0


[Site "https://www.chess.com"]

[Event "Titled Tuesday Blitz December 06 Early 2022"]
[White "Erzhanov, Arman"]
[Black "Muminova, Nafisa"]
[WhiteFideId "4138821"]
[BlackFideId "14201526"]
[WhiteElo "2176"]
[BlackElo "2258"]
[Result "1-0"]
[Round "04"]
[TimeControl "180+1"]
[Date "2022.12.07"]
[WhiteClock "0:01:26"]
[BlackClock "0:00:16"]

1. e4 {[%clk 0:03:00]}  e6 {[%clk 0:02:59]} 2. d4 {[%clk 0:03:00]}  d5 {[%clk 0:03:00]} 3. Nd2 {[%clk 0:03:01]}  c5 {[%clk 0:02:58]} 4. exd5 {[%clk 0:03:00]}  Qxd5 {[%clk 0:02:57]} 5. Ngf3 {[%clk 0:03:00]}  cxd4 {[%clk 0:02:57]} 6. Bc4 {[%clk 0:03:01]}  Qd7 {[%clk 0:02:57]} 7. Qe2 {[%clk 0:03:01]}  Nc6 {[%clk 0:02:54]} 8. Nb3 {[%clk 0:03:01]}  Nf6 {[%clk 0:02:52]} 9. Bg5 {[%clk 0:03:02]}  Bb4+ {[%clk 0:02:44]} 10. Bd2 {[%clk 0:02:58]}  Bxd2+ {[%clk 0:02:40]} 11. Qxd2 {[%clk 0:02:58]}  e5 {[%clk 0:02:33]} 12. Bb5 {[%clk 0:02:53]}  O-O {[%clk 0:02:18]} 13. O-O-O {[%clk 0:02:53]}  Re8 {[%clk 0:02:12]} 14. Rhe1 {[%clk 0:02:53]}  Qd6 {[%clk 0:01:59]} 15. c3 {[%clk 0:02:47]}  Bg4 {[%clk 0:01:46]} 16. cxd4 {[%clk 0:02:48]}  exd4 {[%clk 0:01:28]} 17. Rxe8+ {[%clk 0:02:40]}  Rxe8 {[%clk 0:01:26]} 18. Nbxd4 {[%clk 0:02:28]}  Ne4 {[%clk 0:01:02]} 19. Qc2 {[%clk 0:02:24]}  Nb4 {[%clk 0:00:57]} 20. Qb3 {[%clk 0:01:42]}  Rc8+ {[%clk 0:00:39]} 21. Kb1 {[%clk 0:01:42]}  Nxf2 {[%clk 0:00:28]} 22. Rf1 {[%clk 0:01:40]}  Qg6+ {[%clk 0:00:20]} 23. Ka1 {[%clk 0:01:34]}  Nc2+ {[%clk 0:00:19]} 24. Nxc2 {[%clk 0:01:33]}  Rxc2 {[%clk 0:00:20]} 25. Ne5 {[%clk 0:01:28]}  Qe4 {[%clk 0:00:16]} 26. Qxf7+ {[%clk 0:01:26]} 1-0


[Site "https://www.chess.com"]

[Event "Titled Tuesday Blitz December 06 Early 2022"]
[White "Forgacs, Attila Jr."]
[Black "Koellner, Ruben Gideon"]
[WhiteFideId "773654"]
[BlackFideId "12993093"]
[WhiteElo "2168"]
[BlackElo "2303"]
[Result "0-1"]
[Round "04"]
[TimeControl "180+1"]
[Date "2022.12.07"]
[WhiteClock "0:00:11"]
[BlackClock "0:00:59"]

1. e4 {[%clk 0:03:00]}  d6 {[%clk 0:02:57]} 2. d3 {[%clk 0:03:00]}  Nf6 {[%clk 0:02:57]} 3. g3 {[%clk 0:03:00]}  e5 {[%clk 0:02:57]} 4. Bg2 {[%clk 0:03:01]}  Be7 {[%clk 0:02:58]} 5. Nc3 {[%clk 0:03:01]}  O-O {[%clk 0:02:59]} 6. f4 {[%clk 0:03:01]}  Nc6 {[%clk 0:02:56]} 7. f5 {[%clk 0:02:59]}  Nd4 {[%clk 0:02:55]} 8. Nf3 {[%clk 0:02:59]}  c5 {[%clk 0:02:54]} 9. O-O {[%clk 0:02:56]}  h6 {[%clk 0:02:54]} 10. Nxd4 {[%clk 0:02:56]}  cxd4 {[%clk 0:02:54]} 11. Ne2 {[%clk 0:02:57]}  Bd7 {[%clk 0:02:53]} 12. h3 {[%clk 0:02:49]}  Rc8 {[%clk 0:02:53]} 13. Bd2 {[%clk 0:02:46]}  Qb6 {[%clk 0:02:51]} 14. b3 {[%clk 0:02:38]}  Rc5 {[%clk 0:02:42]} 15. c4 {[%clk 0:02:30]}  dxc3 {[%clk 0:02:17]} 16. Be3 {[%clk 0:02:30]}  d5 {[%clk 0:02:12]} 17. Bxc5 {[%clk 0:02:27]}  Bxc5+ {[%clk 0:02:13]} 18. Kh2 {[%clk 0:02:25]}  d4 {[%clk 0:02:13]} 19. g4 {[%clk 0:02:18]}  Ba3 {[%clk 0:02:11]} 20. Ng3 {[%clk 0:02:11]}  Rc8 {[%clk 0:02:09]} 21. Qc2 {[%clk 0:02:11]}  Bb5 {[%clk 0:02:00]} 22. Rg1 {[%clk 0:02:09]}  Nd7 {[%clk 0:01:59]} 23. Nh5 {[%clk 0:02:03]}  f6 {[%clk 0:01:59]} 24. h4 {[%clk 0:02:02]}  Be7 {[%clk 0:01:56]} 25. Bf3 {[%clk 0:01:50]}  Nb8 {[%clk 0:01:52]} 26. Rg3 {[%clk 0:01:43]}  Kf7 {[%clk 0:01:52]} 27. Rag1 {[%clk 0:01:42]}  Rh8 {[%clk 0:01:41]} 28. Rh3 {[%clk 0:01:28]}  Na6 {[%clk 0:01:36]} 29. g5 {[%clk 0:01:22]}  fxg5 {[%clk 0:01:33]} 30. hxg5 {[%clk 0:01:22]}  Bxg5 {[%clk 0:01:33]} 31. f6 {[%clk 0:00:59]}  g6 {[%clk 0:01:28]} 32. Ng3 {[%clk 0:00:38]}  Qxf6 {[%clk 0:01:27]} 33. Bg4 {[%clk 0:00:32]}  Nb4 {[%clk 0:01:21]} 34. Qe2 {[%clk 0:00:21]}  Bxd3 {[%clk 0:01:19]} 35. Qg2 {[%clk 0:00:14]}  c2 {[%clk 0:01:17]} 36. a3 {[%clk 0:00:15]}  Nc6 {[%clk 0:01:08]} 37. Nf5 {[%clk 0:00:12]}  gxf5 {[%clk 0:01:01]} 38. Bh5+ {[%clk 0:00:12]}  Ke7 {[%clk 0:01:01]} 39. Rxd3 {[%clk 0:00:11]}  c1=Q {[%clk 0:01:00]} 40. Rxc1 {[%clk 0:00:11]}  Bxc1 {[%clk 0:01:01]} 41. Rg3 {[%clk 0:00:11]}  Bf4 {[%clk 0:00:59]} 0-1


[Site "https://www.chess.com"]

[Event "Titled Tuesday Blitz December 06 Early 2022"]
[White "Franca, Ricardo Bedin"]
[Black "Fabris, Alberto"]
[WhiteFideId "2107066"]
[BlackFideId "801348"]
[WhiteElo "2478"]
[BlackElo "2166"]
[Result "1/2-1/2"]
[Round "04"]
[TimeControl "180+1"]
[Date "2022.12.07"]
[WhiteClock "0:01:32"]
[BlackClock "0:00:19"]

1. e4 {[%clk 0:03:00]}  c6 {[%clk 0:02:59]} 2. d4 {[%clk 0:02:59]}  d5 {[%clk 0:03:00]} 3. Nd2 {[%clk 0:02:59]}  dxe4 {[%clk 0:03:00]} 4. Nxe4 {[%clk 0:03:00]}  Nf6 {[%clk 0:03:00]} 5. Nxf6+ {[%clk 0:03:01]}  exf6 {[%clk 0:02:59]} 6. Bc4 {[%clk 0:03:00]}  Bd6 {[%clk 0:02:58]} 7. Qe2+ {[%clk 0:03:01]}  Qe7 {[%clk 0:02:57]} 8. Qxe7+ {[%clk 0:03:01]}  Bxe7 {[%clk 0:02:57]} 9. Bf4 {[%clk 0:03:01]}  O-O {[%clk 0:02:55]} 10. Ne2 {[%clk 0:02:58]}  Nd7 {[%clk 0:02:52]} 11. O-O {[%clk 0:02:53]}  Nb6 {[%clk 0:02:51]} 12. Bb3 {[%clk 0:02:53]}  Be6 {[%clk 0:02:49]} 13. Bxe6 {[%clk 0:02:53]}  fxe6 {[%clk 0:02:50]} 14. b3 {[%clk 0:02:54]}  Nd5 {[%clk 0:02:46]} 15. Bd2 {[%clk 0:02:54]}  Rad8 {[%clk 0:02:45]} 16. c4 {[%clk 0:02:53]}  Nc7 {[%clk 0:02:44]} 17. Bc3 {[%clk 0:02:53]}  Bd6 {[%clk 0:02:43]} 18. Rad1 {[%clk 0:02:50]}  Rfe8 {[%clk 0:02:42]} 19. Ng3 {[%clk 0:02:49]}  Kf7 {[%clk 0:02:42]} 20. Ne4 {[%clk 0:02:49]}  Be7 {[%clk 0:02:41]} 21. f4 {[%clk 0:02:46]}  f5 {[%clk 0:02:38]} 22. Nc5 {[%clk 0:02:42]}  Bxc5 {[%clk 0:02:37]} 23. dxc5 {[%clk 0:02:43]}  g6 {[%clk 0:02:25]} 24. b4 {[%clk 0:02:41]}  a6 {[%clk 0:02:24]} 25. Be5 {[%clk 0:02:35]}  Rxd1 {[%clk 0:02:18]} 26. Rxd1 {[%clk 0:02:35]}  Re7 {[%clk 0:02:18]} 27. Rd8 {[%clk 0:02:32]}  Ne8 {[%clk 0:02:17]} 28. Bd6 {[%clk 0:02:27]}  Nxd6 {[%clk 0:02:11]} 29. cxd6 {[%clk 0:02:28]}  Re8 {[%clk 0:02:10]} 30. Rd7+ {[%clk 0:02:23]}  Kf6 {[%clk 0:02:10]} 31. Rxb7 {[%clk 0:02:23]}  e5 {[%clk 0:02:06]} 32. fxe5+ {[%clk 0:02:16]}  Rxe5 {[%clk 0:02:02]} 33. Rc7 {[%clk 0:02:07]}  Ke6 {[%clk 0:01:43]} 34. Rxc6 {[%clk 0:02:05]}  Re4 {[%clk 0:01:14]} 35. Rxa6 {[%clk 0:01:46]}  Rxc4 {[%clk 0:01:13]} 36. a3 {[%clk 0:01:46]}  Rc2 {[%clk 0:01:05]} 37. b5 {[%clk 0:01:43]}  Rb2 {[%clk 0:01:03]} 38. a4 {[%clk 0:01:43]}  f4 {[%clk 0:01:01]} 39. h4 {[%clk 0:01:41]}  h6 {[%clk 0:01:01]} 40. d7+ {[%clk 0:01:39]}  Kxd7 {[%clk 0:01:00]} 41. Rxg6 {[%clk 0:01:40]}  Rb4 {[%clk 0:00:58]} 42. Ra6 {[%clk 0:01:38]}  h5 {[%clk 0:00:53]} 43. Kf2 {[%clk 0:01:37]}  Rb3 {[%clk 0:00:53]} 44. b6 {[%clk 0:01:36]}  Kc6 {[%clk 0:00:37]} 45. a5 {[%clk 0:01:36]}  Kb7 {[%clk 0:00:37]} 46. Ra7+ {[%clk 0:01:36]}  Kb8 {[%clk 0:00:37]} 47. Ke2 {[%clk 0:01:30]}  Rg3 {[%clk 0:00:33]} 48. a6 {[%clk 0:01:27]}  Rxg2+ {[%clk 0:00:31]} 49. Kf3 {[%clk 0:01:28]}  Rb2 {[%clk 0:00:24]} 50. Rb7+ {[%clk 0:01:27]}  Ka8 {[%clk 0:00:24]} 51. Kxf4 {[%clk 0:01:28]}  Rf2+ {[%clk 0:00:19]} 52. Ke5 {[%clk 0:01:28]}  Rf5+ {[%clk 0:00:18]} 53. Kd4 {[%clk 0:01:28]}  Rd5+ {[%clk 0:00:18]} 54. Kc4 {[%clk 0:01:28]}  Rc5+ {[%clk 0:00:18]} 55. Kb4 {[%clk 0:01:29]}  Rc4+ {[%clk 0:00:17]} 56. Kb3 {[%clk 0:01:29]}  Rc3+ {[%clk 0:00:17]} 57. Kb2 {[%clk 0:01:29]}  Rc2+ {[%clk 0:00:18]} 58. Kb3 {[%clk 0:01:30]}  Rc3+ {[%clk 0:00:18]} 59. Kb4 {[%clk 0:01:30]}  Rc4+ {[%clk 0:00:18]} 60. Kb5 {[%clk 0:01:31]}  Rc5+ {[%clk 0:00:19]} 61. Kxc5 {[%clk 0:01:32]} 1/2-1/2


[Site "https://www.chess.com"]